[Event "8th Llucmajor Open 2019"]
[Site "S'Arenal de Llucmajor"]
[Date "2019.05.22"]
[Round "5.4"]
[White "Movsziszian, Karen"]
[Black "Fier, Alexandr"]
[Result "1/2-1/2"]
[ECO "A00"]
[WhiteElo "2486"]
[BlackElo "2555"]
[Annotator "RC"]
[PlyCount "89"]
[EventDate "2019.05.19"]
[EventType "swiss"]
[EventCountry "ESP"]
[SourceTitle "playchess.com"]
[Source "ChessBase"]
[SourceQuality "1"]
[TimeControl "5400+30"]

1. g3 e5 2. d3 g6 3. c4 c5 4. Nc3 Nc6 5. Bg2 Bg7 6. a3 d6 7. Rb1 a5 8. e3 Nge7 9. Nge2 O-O 10. O-O Rb8 11. Bd2 Bf5 12. e4 Be6 13. Qa4 f5 14. Nd5 fxe4 15. dxe4 Bg4 16. f3 Bd7 17. Bg5 b6 18. Nec3 h6 19. Bxe7 Nxe7 20. Nxe7+ Qxe7 21. Qc2 Qf7 22. b3 Be6 23. Rfd1 Rfd8 24. Nb5 Bf8 25. a4 Rd7 26. Rd3 Rbd8 27. Rbd1 Be7 28. h4 g5 29. hxg5 hxg5 30. Nc3 Rb8 31. Rf1 Qg7 32. Nd5 Bf8 33. Qd1 Rf7 34. Ne3 Rd8 35. Rf2 Qh6 36. Bf1 Rh7 37. Rg2 Be7 38. Kf2 Rf8 39. g4 Rf4 40. Ke1 Qh3 41. Be2 Qh1+ 42. Kd2 Rf6 43. Kc2 Qxd1+ 44. Rxd1 Rfh6 45. Rdg1 1/2-1/2

[Event "8th Llucmajor Open 2019"]
[Site "S'Arenal de Llucmajor"]
[Date "2019.05.23"]
[Round "6.3"]
[White "Zubov, Alexander"]
[Black "Gritask, Orest"]
[Result "1/2-1/2"]
[ECO "D80"]
[WhiteElo "2597"]
[BlackElo "2468"]
[Annotator "ChessBase"]
[PlyCount "21"]
[EventDate "2019.05.19"]
[EventType "swiss"]
[EventCountry "ESP"]
[SourceTitle "playchess.com"]
[Source "ChessBase"]
[SourceQuality "1"]
[TimeControl "5400+30"]

1. d4 {[%emt 0:00:35]} Nf6 {[%emt 0:00:07]} 2. c4 {[%emt 0:00:08]} g6 {[%emt 0:00:27]} 3. Nc3 {[%emt 0:02:04]} d5 {[%emt 0:01:31]} 4. Qa4+ {[%emt 0:05:21]} Bd7 {[%emt 0:08:53]} 5. Qb3 {[%emt 0:00:05]} Nc6 {[%emt 0:00:16]} 6. cxd5 {[%emt 0:00:06]} Nxd4 {[%emt 0:00:05]} 7. Qd1 {[%emt 0:00:05]} Nb5 {[%emt 0:12:20]} 8. Bd2 {[%emt 0:00:09]} Nxc3 {[%emt 0:04:19]} 9. Bxc3 {[%emt 0:00:06]} c6 {[%emt 0:01:31]} 10. dxc6 {[%emt 0:06:55]} Bxc6 {[%emt 0:00:10]} 11. Nf3 {[%emt 0:00:27]} 1/2-1/2

[Event "8th Llucmajor Open 2019"]
[Site "S'Arenal de Llucmajor"]
[Date "2019.05.23"]
[Round "6.6"]
[White "Storey, Charles H"]
[Black "Nasuta, Grzegorz"]
[Result "0-1"]
[ECO "D02"]
[WhiteElo "2228"]
[BlackElo "2518"]
[Annotator "ChessBase"]
[PlyCount "58"]
[EventDate "2019.05.19"]
[EventType "swiss"]
[EventCountry "ESP"]
[SourceTitle "playchess.com"]
[Source "ChessBase"]
[SourceQuality "1"]
[TimeControl "5400+30"]

1. Nf3 {[%emt 0:00:00]} Nf6 {[%emt 0:00:47]} 2. d4 {[%emt 0:00:14]} d5 {[%emt 0:04:17]} 3. Bf4 {[%emt 0:00:09]} g6 {[%emt 0:05:48]} 4. Nc3 {[%emt 0:01:29]} Bg7 {[%emt 0:01:37]} 5. Qd2 {[%emt 0:04:08]} c5 {[%emt 0:05:30]} 6. e3 {[%emt 0:11:19]} O-O {[%emt 0:00:46]} 7. h3 {[%emt 0:02:44]} Bf5 {[%emt 0:04:55]} 8. Ne5 {[%emt 0:04:13]} Nc6 {[%emt 0:14:03]} 9. g4 {[%emt 0:16:37]} Ne4 {[%emt 0:09:44]} 10. Nxc6 {[%emt 0:18:35]} bxc6 {[%emt 0:00:16]} 11. Qd1 {[%emt 0:05:59]} cxd4 {[%emt 0:09:32]} 12. exd4 {[%emt 0:05:31]} Nxc3 {[%emt 0:01:13]} 13. bxc3 {[%emt 0:00:15]} Bc8 {[%emt 0:00:09]} 14. Bd3 {[%emt 0:02:45]} c5 {[%emt 0:04:04]} 15. Be3 {[%emt 0:04:30]} Qa5 {[%emt 0:02:02]} 16. Qd2 {[%emt 0:00:30]} Rb8 {[%emt 0:04:11]} 17. f4 {[%emt 0:02:58]} Rb2 {[%emt 0:05:10]} 18. a3 {[%emt 0:02:12]} Bd7 {[%emt 0:00:22]} 19. Be2 {[%emt 0:07:35]} Rc8 {[%emt 0:05:35]} 20. Bd1 {[%emt 0:02:30]} Ba4 {[%emt 0:03:53]} 21. Rh2 {[%emt 0:00:09]} cxd4 {[%emt 0:02:41]} 22. cxd4 {[%emt 0:00:14]} Qb6 {[%emt 0:00:07]} 23. h4 {[%emt 0:03:37]} Rcxc2 {[%emt 0:05:32]} 24. Bxc2 {[%emt 0:01:05]} Rxc2 {[%emt 0:00:07]} 25. Rc1 {[%emt 0:02:38]} Rxd2 {[%emt 0:00:21]} 26. Rxd2 {[%emt 0:00:22]} Qe6 {[%emt 0:00:53]} 27. Re2 {[%emt 0:00:37]} Qxg4 {[%emt 0:00:42]} 28. Rc7 {[%emt 0:00:02]} Bf6 {[%emt 0:00:58]} 29. f5 {[%emt 0:00:14]} Qg3+ {[%emt 0:00:13]} 0-1

[Event "8th Llucmajor Open 2019"]
[Site "S'Arenal de Llucmajor"]
[Date "2019.05.25"]
[Round "8.2"]
[White "Souleidis, Georgios"]
[Black "Rasmussen, Allan Stig"]
[Result "0-1"]
[ECO "B12"]
[WhiteElo "2417"]
[BlackElo "2552"]
[Annotator "ChessBase"]
[PlyCount "58"]
[EventDate "2019.05.19"]
[EventType "swiss"]
[EventCountry "ESP"]
[SourceTitle "playchess.com"]
[Source "ChessBase"]
[SourceQuality "1"]
[TimeControl "5400+30"]

1. e4 c6 2. d4 d5 3. f3 e6 4. Nc3 Bb4 5. Bf4 Nf6 6. Qd3 O-O 7. Nge2 b5 8. O-O-O Be7 9. Kb1 b4 10. Na4 Ba6 11. Qe3 dxe4 12. fxe4 Bb5 13. b3 Bxa4 14. bxa4 Nbd7 15. g4 Nb6 16. h4 Nxg4 17. Qf3 f5 18. Ng3 Nf6 19. exf5 Nfd5 20. Bd2 Kh8 21. Qg4 Nf6 22. Qf3 Nxa4 23. Be1 Nd5 24. Ka1 Nac3 25. Rd2 Qa5 26. Bc4 Nxa2 27. c3 Naxc3+ 28. Kb2 b3 29. Bxb3 Rab8 0-1

[Event "8th Llucmajor Open 2019"]
[Site "S'Arenal de Llucmajor"]
[Date "2019.05.25"]
[Round "8.3"]
[White "Santos Latasa, Jaime"]
[Black "Arizmendi Martinez, Julen Luis"]
[Result "1-0"]
[ECO "B12"]
[WhiteElo "2587"]
[BlackElo "2511"]
[Annotator "ChessBase"]
[PlyCount "87"]
[EventDate "2019.05.19"]
[EventType "swiss"]
[EventCountry "ESP"]
[SourceTitle "playchess.com"]
[Source "ChessBase"]
[SourceQuality "1"]
[TimeControl "5400+30"]

1. e4 {[%emt 0:00:00]} c6 {[%emt 0:07:23]} 2. d4 {[%emt 0:00:02]} d5 {[%emt 0:00:06]} 3. e5 {[%emt 0:00:09]} c5 {[%emt 0:00:36]} 4. dxc5 {[%emt 0:00:22]} e6 {[%emt 0:00:17]} 5. Nf3 {[%emt 0:00:18]} Bxc5 {[%emt 0:00:39]} 6. Bd3 {[%emt 0:00:04]} Ne7 {[%emt 0:01:04]} 7. O-O {[%emt 0:00:38]} Ng6 {[%emt 0:01:31]} 8. Nbd2 {[%emt 0:02:23]} Nd7 {[%emt 0:16:59]} 9. Nb3 {[%emt 0:02:01]} Be7 {[%emt 0:04:56]} 10. Re1 {[%emt 0:01:12]} O-O {[%emt 0:02:27]} 11. c3 {[%emt 0:02:12]} Nc5 {[%emt 0:12:21]} 12. Nxc5 {[%emt 0:03:23]} Bxc5 {[%emt 0:00:05]} 13. Be3 {[%emt 0:00:23]} b6 {[%emt 0:04:18]} 14. Qa4 {[%emt 0:02:46]} Bd7 {[%emt 0:07:23]} 15. Qg4 {[%emt 0:01:30]} f5 {[%emt 0:00:18]} 16. exf6 {[%emt 0:00:50]} Qxf6 {[%emt 0:00:06]} 17. Qh5 {[%emt 0:00:43]} Be8 {[%emt 0:09:26]} 18. Bxc5 {[%emt 0:03:58]} bxc5 {[%emt 0:00:17]} 19. Rxe6 {[%emt 0:00:23]} Qf4 {[%emt 0:05:04]} 20. Rf1 {[%emt 0:07:42]} Rd8 {[%emt 0:05:01]} 21. Ng5 {[%emt 0:02:15]} h6 {[%emt 0:00:16]} 22. Rxe8 {[%emt 0:02:54]} Rdxe8 {[%emt 0:00:02]} 23. Nh3 {[%emt 0:00:10]} Qf6 {[%emt 0:01:35]} 24. Bxg6 {[%emt 0:01:23]} Re5 {[%emt 0:00:26]} 25. Qg4 {[%emt 0:00:06]} Qe6 {[%emt 0:01:44]} 26. Qxe6+ {[%emt 0:01:47]} Rxe6 {[%emt 0:00:09]} 27. Bh5 {[%emt 0:00:04]} Rb6 {[%emt 0:06:34]} 28. b3 {[%emt 0:01:01]} Ra6 {[%emt 0:03:53]} 29. Bf3 {[%emt 0:01:46]} Rf5 {[%emt 0:00:11]} 30. Ra1 {[%emt 0:02:03]} c4 {[%emt 0:00:56]} 31. Bd1 {[%emt 0:04:19]} Ra3 {[%emt 0:02:44]} 32. g3 {[%emt 0:05:20]} Rf6 {[%emt 0:02:53]} 33. Nf4 {[%emt 0:05:31]} Rfa6 {[%emt 0:00:10]} 34. bxc4 {[%emt 0:01:59]} dxc4 {[%emt 0:00:06]} 35. Be2 {[%emt 0:01:08]} R6a4 {[%emt 0:02:38]} 36. Rd1 {[%emt 0:02:36]} Rxc3 {[%emt 0:01:30]} 37. Bh5 {[%emt 0:00:16]} g5 {[%emt 0:01:10]} 38. Rd8+ {[%emt 0:00:15]} Kg7 {[%emt 0:00:24]} 39. Rd7+ {[%emt 0:00:09]} Kg8 {[%emt 0:01:04]} 40. Ne6 {[%emt 0:01:19]} Rd3 {[%emt 0:00:29]} 41. Re7 {[%emt 0:01:29]} Rb4 {[%emt 0:00:40]} 42. Bf7+ {[%emt 0:03:06]} Kh8 {[%emt 0:00:34]} 43. Re8+ {[%emt 0:00:18]} Kh7 {[%emt 0:00:05]} 44. Rg8 {[%emt 0:00:04]} 1-0

[Event "8th Llucmajor Open 2019"]
[Site "S'Arenal de Llucmajor"]
[Date "2019.05.25"]
[Round "8.6"]
[White "Fier, Alexandr"]
[Black "Gritask, Orest"]
[Result "1-0"]
[ECO "A30"]
[WhiteElo "2555"]
[BlackElo "2468"]
[Annotator "ChessBase"]
[PlyCount "89"]
[EventDate "2019.05.19"]
[EventType "swiss"]
[EventCountry "ESP"]
[SourceTitle "playchess.com"]
[Source "ChessBase"]
[SourceQuality "1"]
[TimeControl "5400+30"]

1. c4 {[%emt 0:00:00]} c5 {[%emt 0:01:18]} 2. Nf3 {[%emt 0:00:00]} Nf6 {[%emt 0:00:22]} 3. Nc3 {[%emt 0:00:00]} e6 {[%emt 0:04:07]} 4. e3 {[%emt 0:00:00]} a6 {[%emt 0:03:12]} 5. d4 {[%emt 0:00:04]} d5 {[%emt 0:00:12]} 6. cxd5 {[%emt 0:00:17]} exd5 {[%emt 0:01:10]} 7. g3 {[%emt 0:00:06]} Bg4 {[%emt 0:17:46]} 8. Bg2 {[%emt 0:02:58]} cxd4 {[%emt 0:07:50]} 9. exd4 {[%emt 0:00:43]} Be7 {[%emt 0:02:45]} 10. O-O {[%emt 0:00:07]} O-O {[%emt 0:01:45]} 11. h3 {[%emt 0:00:03]} Bf5 {[%emt 0:02:46]} 12. Ne5 {[%emt 0:02:32]} Nc6 {[%emt 0:04:14]} 13. g4 {[%emt 0:05:13]} Be6 {[%emt 0:07:42]} 14. f4 {[%emt 0:01:28]} Qb6 {[%emt 0:03:12]} 15. Kh1 {[%emt 0:01:49]} Rad8 {[%emt 0:01:11]} 16. Nxc6 {[%emt 0:02:43]} Qxc6 {[%emt 0:01:26]} 17. f5 {[%emt 0:00:05]} Bc8 {[%emt 0:01:13]} 18. Bf4 {[%emt 0:03:56]} Bb4 {[%emt 0:06:06]} 19. Rc1 {[%emt 0:00:43]} Bxc3 {[%emt 0:00:05]} 20. Rxc3 {[%emt 0:00:03]} Qb5 {[%emt 0:00:04]} 21. Be5 {[%emt 0:03:51]} Ne4 {[%emt 0:02:11]} 22. Bxe4 {[%emt 0:01:49]} dxe4 {[%emt 0:00:02]} 23. f6 {[%emt 0:00:06]} Qxb2 {[%emt 0:08:51]} 24. Rc2 {[%emt 0:02:47]} Qa3 {[%emt 0:02:17]} 25. Qe1 {[%emt 0:04:02]} Rfe8 {[%emt 0:04:28]} 26. Rc3 {[%emt 0:02:00]} Qa5 {[%emt 0:08:08]} 27. Qc1 {[%emt 0:00:35]} e3 {[%emt 0:00:57]} 28. Qxe3 {[%emt 0:00:39]} Qd5+ {[%emt 0:00:15]} 29. Kg1 {[%emt 0:00:29]} gxf6 {[%emt 0:01:45]} 30. Rxf6 {[%emt 0:00:09]} Rxe5 {[%emt 0:00:08]} 31. dxe5 {[%emt 0:01:29]} Be6 {[%emt 0:00:22]} 32. Rf2 {[%emt 0:00:40]} Qd1+ {[%emt 0:00:43]} 33. Kh2 {[%emt 0:00:24]} Qd4 {[%emt 0:01:13]} 34. Qg5+ {[%emt 0:00:30]} Kf8 {[%emt 0:00:02]} 35. Rcf3 {[%emt 0:00:07]} Rd5 {[%emt 0:00:18]} 36. Re3 {[%emt 0:01:51]} b5 {[%emt 0:01:37]} 37. Kg3 {[%emt 0:00:16]} b4 {[%emt 0:00:56]} 38. Kh4 {[%emt 0:00:38]} Rc5 {[%emt 0:02:03]} 39. Rf4 {[%emt 0:03:54]} Qd2 {[%emt 0:01:39]} 40. Ree4 {[%emt 0:00:04]} Rd5 {[%emt 0:02:54]} 41. Kh5 {[%emt 0:07:28]} a5 {[%emt 0:00:43]} 42. Kh6 {[%emt 0:00:08]} Rd3 {[%emt 0:00:10]} 43. h4 {[%emt 0:00:15]} Bxa2 {[%emt 0:00:47]} 44. e6 {[%emt 0:00:22]} Bxe6 {[%emt 0:00:21]} 45. Rxe6 {[%emt 0:00:04]} 1-0

[Event "8th Llucmajor Open 2019"]
[Site "S'Arenal de Llucmajor"]
[Date "2019.05.25"]
[Round "8.7"]
[White "Alvarado Diaz, Alejandro"]
[Black "Nasuta, Grzegorz"]
[Result "1/2-1/2"]
[ECO "A28"]
[WhiteElo "2380"]
[BlackElo "2518"]
[Annotator "ChessBase"]
[PlyCount "82"]
[EventDate "2019.05.19"]
[EventType "swiss"]
[EventCountry "ESP"]
[SourceTitle "playchess.com"]
[Source "ChessBase"]
[SourceQuality "1"]
[TimeControl "5400+30"]

1. c4 {[%emt 0:00:00]} e5 {[%emt 0:00:00]} 2. Nc3 {[%emt 0:00:28]} Nf6 {[%emt 0:00:10]} 3. Nf3 {[%emt 0:00:31]} Nc6 {[%emt 0:00:06]} 4. e4 {[%emt 0:00:23]} Bc5 {[%emt 0:03:25]} 5. Nxe5 {[%emt 0:00:52]} Nxe5 {[%emt 0:11:31]} 6. d4 {[%emt 0:00:25]} Bxd4 {[%emt 0:00:05]} 7. Qxd4 {[%emt 0:00:11]} d6 {[%emt 0:00:04]} 8. Be2 {[%emt 0:02:59]} O-O {[%emt 0:00:35]} 9. Bg5 {[%emt 0:03:25]} h6 {[%emt 0:15:07]} 10. Bh4 {[%emt 0:01:59]} Nc6 {[%emt 0:00:34]} 11. Qd1 {[%emt 0:05:24]} Re8 {[%emt 0:00:20]} 12. f3 {[%emt 0:02:17]} Ne5 {[%emt 0:08:39]} 13. Nd5 {[%emt 0:08:10]} g5 {[%emt 0:06:14]} 14. Bf2 {[%emt 0:04:10]} Be6 {[%emt 0:00:48]} 15. O-O {[%emt 0:03:54]} Ng6 {[%emt 0:01:45]} 16. Qd2 {[%emt 0:04:03]} c6 {[%emt 0:11:15]} 17. Nc3 {[%emt 0:03:59]} Qe7 {[%emt 0:03:47]} 18. Rfe1 {[%emt 0:05:51]} Nd7 {[%emt 0:05:42]} 19. b3 {[%emt 0:11:42]} Nde5 {[%emt 0:00:30]} 20. Kh1 {[%emt 0:00:38]} Red8 {[%emt 0:04:57]} 21. Bf1 {[%emt 0:05:25]} Qf6 {[%emt 0:00:08]} 22. Ne2 {[%emt 0:01:32]} b5 {[%emt 0:02:32]} 23. Nd4 {[%emt 0:03:48]} bxc4 {[%emt 0:00:07]} 24. Nxe6 {[%emt 0:00:04]} Qxe6 {[%emt 0:00:27]} 25. bxc4 {[%emt 0:00:46]} c5 {[%emt 0:10:58]} 26. Qc3 {[%emt 0:02:43]} Rdb8 {[%emt 0:00:12]} 27. Rab1 {[%emt 0:00:47]} Rb6 {[%emt 0:00:08]} 28. Rb3 {[%emt 0:02:12]} Rab8 {[%emt 0:00:12]} 29. Reb1 {[%emt 0:00:06]} Qd7 {[%emt 0:02:18]} 30. Rxb6 {[%emt 0:01:58]} Rxb6 {[%emt 0:00:19]} 31. Rxb6 {[%emt 0:00:05]} axb6 {[%emt 0:00:06]} 32. Qb3 {[%emt 0:00:04]} Qa7 {[%emt 0:00:35]} 33. a4 {[%emt 0:00:52]} Qa5 {[%emt 0:06:12]} 34. h4 {[%emt 0:11:10]} Qd2 {[%emt 0:03:01]} 35. Kg1 {[%emt 0:00:06]} Nxh4 {[%emt 0:00:06]} 36. Qxb6 {[%emt 0:00:41]} Nexf3+ {[%emt 0:01:32]} 37. gxf3 {[%emt 0:00:06]} Nxf3+ {[%emt 0:00:03]} 38. Kg2 {[%emt 0:00:04]} Ne1+ {[%emt 0:00:23]} 39. Kg1 {[%emt 0:00:09]} Nf3+ {[%emt 0:00:07]} 40. Kg2 {[%emt 0:00:04]} Ne1+ {[%emt 0:03:47]} 41. Kg1 {[%emt 0:00:04]} Nf3+ {[%emt 0:00:03]} 1/2-1/2

[Event "8th Llucmajor Open 2019"]
[Site "S'Arenal de Llucmajor"]
[Date "2019.05.26"]
[Round "9.6"]
[White "Nasuta, Grzegorz"]
[Black "Hyndiuk, Aleksander"]
[Result "1/2-1/2"]
[ECO "B18"]
[WhiteElo "2518"]
[BlackElo "2411"]
[Annotator "RC"]
[PlyCount "76"]
[EventDate "2019.05.19"]
[EventType "swiss"]
[EventCountry "ESP"]
[SourceTitle "playchess.com"]
[Source "ChessBase"]
[SourceQuality "1"]
[TimeControl "5400+30"]

1. e4 {[%emt 0:00:00]} c6 {[%emt 0:02:01]} 2. d4 {[%emt 0:00:18]} d5 {[%emt 0:00:03]} 3. Nc3 {[%emt 0:00:06]} dxe4 {[%emt 0:00:04]} 4. Nxe4 {[%emt 0:00:06]} Bf5 {[%emt 0:00:03]} 5. Ng3 {[%emt 0:00:08]} Bg6 {[%emt 0:00:05]} 6. h4 {[%emt 0:00:57]} h6 {[%emt 0:00:05]} 7. Nf3 {[%emt 0:00:05]} e6 {[%emt 0:00:11]} 8. Ne5 {[%emt 0:04:12]} Bh7 {[%emt 0:00:05]} 9. Bd3 {[%emt 0:00:08]} Bxd3 {[%emt 0:00:05]} 10. Qxd3 {[%emt 0:00:05]} Nd7 {[%emt 0:00:11]} 11. Qe2 {[%emt 0:00:05]} Ngf6 {[%emt 0:06:26]} 12. Bd2 {[%emt 0:00:56]} Be7 {[%emt 0:00:21]} 13. O-O-O {[%emt 0:01:21]} O-O {[%emt 0:00:04]} 14. f4 {[%emt 0:02:35]} c5 {[%emt 0:15:33]} 15. f5 {[%emt 0:26:17]} cxd4 {[%emt 0:20:18]} 16. fxe6 {[%emt 0:01:23]} Nxe5 {[%emt 0:00:45]} 17. Qxe5 {[%emt 0:00:07]} Qd5 {[%emt 0:03:18]} 18. Qxd5 {[%emt 0:06:07]} Nxd5 {[%emt 0:02:06]} 19. Nf5 {[%emt 0:19:40]} Bc5 {[%emt 0:10:35]} 20. Be1 {[%emt 0:22:54]} fxe6 {[%emt 0:18:52]} 21. Nxd4 {[%emt 0:00:06]} Ne3 {[%emt 0:00:15]} 22. Rd3 {[%emt 0:04:03]} Bxd4 {[%emt 0:02:19]} 23. Rxd4 {[%emt 0:00:01]} Nxg2 {[%emt 0:00:13]} 24. Bd2 {[%emt 0:01:01]} e5 {[%emt 0:00:25]} 25. Re4 {[%emt 0:04:06]} Rae8 {[%emt 0:00:06]} 26. Bxh6 {[%emt 0:00:18]} gxh6 {[%emt 0:00:04]} 27. Rg1 {[%emt 0:03:22]} Rf4 {[%emt 0:10:43]} 28. Rxg2+ {[%emt 0:00:07]} Kf7 {[%emt 0:00:04]} 29. Rge2 {[%emt 0:02:03]} Rxe4 {[%emt 0:00:07]} 30. Rxe4 {[%emt 0:00:01]} Kf6 {[%emt 0:00:21]} 31. Rg4 {[%emt 0:01:32]} Re7 {[%emt 0:04:18]} 32. Kd2 {[%emt 0:00:16]} Kf5 {[%emt 0:00:20]} 33. Rg8 {[%emt 0:00:43]} Rd7+ {[%emt 0:00:14]} 34. Ke3 {[%emt 0:00:29]} Rd4 {[%emt 0:00:55]} 35. Rg7 {[%emt 0:00:18]} b5 {[%emt 0:01:22]} 36. Rf7+ {[%emt 0:00:57]} Ke6 {[%emt 0:00:24]} 37. Rxa7 {[%emt 0:00:05]} Rxh4 {[%emt 0:00:04]} 38. a3 {[%emt 0:01:08]} e4 {Kxe4 Ke5+} 1/2-1/2